lending/lending_fUSD_20251114
["ID","MTS","AMOUNT","RATE_DAILY","PERIOD"]
[393969602,1763143843547,-150.0,0.00018001,2]
[393969603,1763143843560,-150.0,0.00018001,2]
[393969604,1763143843570,-500.0,0.00018001,2]
[393969605,1763143843579,-150.0,0.00018001,2]
[393969606,1763143843589,-150.0,0.00018001,2]
[393969607,1763143843599,-150.0,0.00018001,2]
[393969608,1763143843609,-300.0,0.00018001,2]
[393969609,1763143843620,-300.0,0.00018001,2]
[393969610,1763143843630,-300.0,0.00018003,2]
[393969611,1763143843640,-478.56668374,0.00018032,2]
[393969612,1763143843649,-200.0,0.00018059,2]
[393969613,1763143843659,-168.0,0.00018064,2]
[393969614,1763143843668,-168.0,0.00018069,2]
[393969615,1763143843678,-1000.0,0.00018082,2]
[393969616,1763143843688,-200.0,0.00018089,2]
[393969617,1763143843698,-250.0,0.000181,3]
[393969618,1763143843708,-168.0,0.00018107,2]
[393969619,1763143843717,-1500.0,0.00018121,2]
[393969620,1763143843731,-200.0,0.00018137,2]
[393969621,1763143843741,-500.0,0.00018137,2]
[393969622,1763143843750,-150.0,0.00018137,2]
[393969623,1763143843760,-500.0,0.00018138,2]
[393969624,1763143843770,-500.0,0.00018138,2]
[393969625,1763143843779,-425.0,0.00018138,2]
[393969626,1763143843789,-500.0,0.00018138,2]
[393969627,1763143843799,-150.0,0.00018138,2]
[393969628,1763143843811,-500.0,0.00018138,2]
[393969629,1763143843821,-150.0,0.00018138,2]
[393969630,1763143843831,-166.67,0.00018149,2]
[393969631,1763143843840,-478.08,0.0001823,2]
[393969632,1763143843850,-478.08,0.0001823,2]
[393969633,1763143843860,-478.08,0.0001823,2]
[393969634,1763143843870,-478.08,0.0001823,2]
[393969635,1763143843879,-478.08,0.0001823,2]
[393969636,1763143843890,-478.08,0.0001823,2]
[393969637,1763143843900,-193.21,0.00018245,2]
[393969638,1763143843909,-168.0,0.00018246,2]
[393969639,1763143843916,-500.0,0.00018274,2]
[393969640,1763143843925,-228.9962114,0.00018274,2]
[393969641,1763143843936,-269.65,0.00018274,2]
[393969642,1763143843947,-500.0,0.00018275,2]
[393969643,1763143843957,-500.0,0.00018275,2]
[393969644,1763143843966,-425.0,0.00018275,2]
[393969645,1763143843977,-500.0,0.00018275,2]
[393969646,1763143843986,-192.40019802,0.00018275,2]
[393969647,1763143843996,-500.0,0.00018275,2]
[393969648,1763143844006,-150.0,0.00018275,2]
[393969649,1763143844015,-168.0,0.00018327,2]
[393969650,1763143844025,-11285.72,0.00018356,2]
[393969651,1763143844035,-168.0,0.00018381,2]
[393969652,1763143844044,-500.0,0.00018412,2]
[393969653,1763143844055,-500.0,0.00018412,2]
[393969654,1763143844065,-425.0,0.00018412,2]
[393969655,1763143844075,-500.0,0.00018412,2]
[393969656,1763143844091,-500.0,0.00018412,2]
[393969657,1763143844100,-250.0,0.00018412,2]
[393969658,1763143844110,-1337.0,0.000185,4]
[393969659,1763143844120,-168.0,0.00018514,2]
[393969660,1763143844129,-506.29988366,0.00018521,2]
[393969661,1763143844141,-269.65,0.00018548,2]
[393969662,1763143844151,-500.0,0.00018549,2]
[393969663,1763143844162,-500.0,0.00018549,2]
[393969664,1763143844171,-425.0,0.00018549,2]
[393969665,1763143844181,-500.0,0.00018549,2]
[393969666,1763143844191,-500.0,0.00018549,2]
[393969667,1763143844200,-500.0,0.00018686,2]
[393969668,1763143844210,-500.0,0.00018686,2]
[393969669,1763143844219,-425.0,0.00018686,2]
[393969670,1763143844229,-500.0,0.00018686,2]
[393969671,1763143844239,-500.0,0.00018686,2]
[393969672,1763143844248,-168.0,0.00018692,2]
[393969673,1763143844258,-166.66,0.00018743,2]
[393969674,1763143844267,-1000.0,0.0001876,2]
[393969675,1763143844277,-168.0,0.00018778,2]
[393969676,1763143844286,-168.06,0.00018786,2]
[393969677,1763143844296,-168.0,0.00018796,2]
[393969678,1763143844308,-150.29,0.000188,2]
[393969679,1763143844318,-150.29,0.000188,2]
[393969680,1763143844327,-150.29,0.000188,2]
[393969681,1763143844336,-150.29,0.000188,2]
[393969682,1763143844346,-150.29,0.000188,2]
[393969683,1763143844356,-150.29,0.000188,2]
[393969684,1763143844366,-150.29,0.000188,2]
[393969685,1763143844376,-150.29,0.000188,2]
[393969686,1763143844386,-150.29,0.000188,2]
[393969687,1763143844396,-150.29,0.000188,2]
[393969688,1763143844406,-150.29,0.000188,2]
[393969689,1763143844416,-150.29,0.000188,2]
[393969690,1763143844425,-150.29,0.000188,2]
[393969691,1763143844435,-150.29,0.000188,2]
[393969692,1763143844444,-150.29,0.000188,2]
[393969693,1763143844453,-150.29,0.000188,2]
[393969694,1763143844463,-150.29,0.000188,2]
[393969695,1763143844473,-150.29,0.000188,2]
[393969696,1763143844483,-150.29,0.000188,2]
[393969697,1763143844492,-150.29,0.000188,2]
[393969698,1763143844502,-150.29,0.000188,2]
[393969699,1763143844511,-150.29,0.000188,2]
[393969700,1763143844532,-150.29,0.000188,2]
[393969701,1763143844545,-150.29,0.000188,2]
[393969702,1763143844558,-150.29,0.000188,2]
[393969703,1763143844568,-150.29,0.000188,2]
[393969704,1763143844578,-150.29,0.000188,2]
[393969705,1763143844589,-150.29,0.000188,2]
[393969706,1763143844599,-150.29,0.000188,2]
[393969707,1763143844609,-150.29,0.000188,2]
[393969708,1763143844619,-150.29,0.000188,2]
[393969709,1763143844629,-150.29,0.000188,2]
[393969710,1763143844639,-150.29,0.000188,2]
[393969711,1763143844649,-150.29,0.000188,2]
[393969712,1763143844658,-150.29,0.000188,2]
[393969713,1763143844668,-150.29,0.000188,2]
[393969714,1763143844677,-150.29,0.000188,2]
[393969715,1763143844687,-150.29,0.000188,2]
[393969716,1763143844697,-150.29,0.000188,2]
[393969717,1763143844707,-150.29,0.000188,2]
[393969718,1763143844717,-150.29,0.000188,2]
[393969719,1763143844727,-150.29,0.000188,2]
[393969720,1763143844737,-150.29,0.000188,2]
[393969721,1763143844747,-150.29,0.000188,2]
[393969722,1763143844758,-150.29,0.000188,2]
[393969723,1763143844767,-2335.83007,0.0001882,2]
[393969724,1763143844777,-269.65,0.00018822,2]
[393969725,1763143844787,-500.0,0.00018823,2]
[393969726,1763143844796,-500.0,0.00018823,2]
[393969727,1763143844807,-425.0,0.00018823,2]
[393969728,1763143844817,-616.50401327,0.00018823,2]
[393969729,1763143844827,-500.0,0.00018823,2]
[393969730,1763143844836,-168.0,0.00018834,2]
[393969731,1763143844846,-168.0,0.00018835,2]
[393969732,1763143844856,-500.0,0.0001896,2]
[393969733,1763143844865,-500.0,0.0001896,2]
[393969734,1763143844879,-425.0,0.0001896,2]
[393969735,1763143844889,-500.0,0.0001896,2]
[393969736,1763143844899,-168.0,0.00018979,2]
[393969737,1763143844909,-5007.66584184,0.00019,3]
[393969738,1763143844919,-206.5787026,0.00019,2]
[393969739,1763143844929,-354.82414188,0.00019,2]
[393969740,1763143844938,-300.0,0.00019,2]
[393969741,1763143844948,-1011.98279901,0.00019,2]
[393969742,1763143844957,-1011.98279901,0.00019,2]
[393969743,1763143844967,-168.0,0.00019058,2]
[393969744,1763143844976,-166.67,0.00019095,2]
[393969745,1763143844986,-269.69,0.00019096,2]
[393969746,1763143844996,-500.0,0.00019097,2]
[393969747,1763143845006,-150.0,0.00019097,2]
[393969748,1763143845016,-425.0,0.00019097,2]
[393969749,1763143845026,-500.0,0.00019097,2]
[393969750,1763143845035,-3004.42758926,0.00019178,2]
[393969751,1763143845045,-3376.17,0.00019178,2]
[393969752,1763143845055,-2332.91,0.00019178,2]
[393969753,1763143845065,-500.0,0.00019234,2]
[393969754,1763143845075,-425.0,0.00019234,2]
[393969755,1763143845089,-234.0,0.00019234,2]
[393969756,1763143845099,-300.0,0.00019371,2]
[393969757,1763143845109,-425.0,0.00019371,2]
[393969758,1763143845119,-300.0,0.00019373,2]
[393969759,1763143845129,-500.0,0.00019388,2]
[393969760,1763143845139,-1000.0,0.00019438,2]
[393969761,1763143845149,-269.26615959,0.00019497,2]
[393969762,1763143845162,-425.0,0.00019508,2]
[393969763,1763143845172,-478.08,0.00019556,2]
[393969764,1763143845182,-478.08,0.00019556,2]
[393969765,1763143845192,-478.08,0.00019556,2]
[393969766,1763143845202,-956.16,0.00019556,2]
[393969767,1763143845212,-478.08,0.00019556,2]
[393969768,1763143845221,-478.08,0.00019556,2]
[393969769,1763143845231,-478.08,0.00019556,2]
[393969770,1763143845241,-478.08,0.00019556,2]
[393969771,1763143845251,-478.08,0.00019556,2]
[393969772,1763143845262,-478.08,0.00019556,2]
[393969773,1763143845271,-478.08,0.00019556,2]
[393969774,1763143845281,-478.08,0.00019556,2]
[393969775,1763143845291,-478.08,0.00019556,2]
[393969776,1763143845300,-478.08,0.00019556,2]
[393969778,1763143845533,-478.08,0.00019556,2]
[393969779,1763143845544,-478.08,0.00019556,2]
[393969780,1763143845555,-478.08,0.00019556,2]
[393969782,1763143845565,-478.08,0.00019556,2]
[393969784,1763143845575,-478.08,0.00019556,2]
[393969786,1763143845585,-478.08,0.00019556,2]
[393969787,1763143845595,-478.08,0.00019556,2]
[393969788,1763143845605,-478.08,0.00019556,2]
[393969789,1763143845615,-478.08,0.00019556,2]
[393969790,1763143845624,-478.08,0.00019556,2]
[393969791,1763143845634,-478.08,0.00019556,2]
[393969792,1763143845645,-186.74,0.00019556,2]
[393969793,1763143845654,-478.08,0.00019572,2]
[393969794,1763143845663,-478.08,0.00019572,2]
[393969795,1763143845673,-478.08,0.00019572,2]
[393969796,1763143845683,-478.08,0.00019572,2]
[393969797,1763143845692,-478.08,0.00019572,2]
[393969798,1763143845702,-977.65,0.00019572,2]
[393969799,1763143845711,-195.0,0.00019613,2]
[393969800,1763143845721,-250.0,0.00019613,2]
[393969801,1763143845731,-1680.0,0.00019628,2]
[393969802,1763143845740,-425.0,0.00019645,2]
[393969803,1763143845750,-300.0,0.00019701,2]
[393969804,1763143845759,-164.78,0.00019763,2]
[393969805,1763143845769,-425.0,0.00019782,2]
[393969807,1763143845778,-2335.83007,0.0001982,2]
[393969809,1763143845788,-3720.6938893,0.0001986,2]
[393969810,1763143845798,-425.0,0.00019919,2]
[393969811,1763143845810,-894.55851,0.00019935,2]
[393969812,1763143845820,-168.06,0.0001996,2]
[393969813,1763143845829,-500.84911598,0.00019973,2]
[393969814,1763143845839,-500.0,0.00019973,2]
[393969815,1763143845848,-200.0,0.00019973,2]
[393969816,1763143845858,-501.07034939,0.00019973,2]
[393969818,1763143845868,-500.0,0.00019973,2]
[393969820,1763143845878,-500.0,0.00019973,2]
[393969822,1763143845887,-300.0,0.00019999,2]
[393969823,1763143845898,-300.0,0.00019999,2]
[393969824,1763143845907,-150.14,0.0002,2]
[393969825,1763143845917,-1453.13764288,0.0002,5]
[393969826,1763143845926,-140838.0,0.0002,7]
[393969827,1763143845936,-57655.75266935,0.0002,5]
[393969828,1763143845945,-1000.0,0.0002,2]
[393969829,1763143845955,-5000.00579797,0.0002,2]
[393969830,1763143845964,-478.82688331,0.0002,7]
[393969831,1763143845973,-206.5787026,0.0002,2]
[393969832,1763143845982,-184.66,0.0002,2]
[393969833,1763143845992,-166.67,0.00020041,2]
[393969834,1763143846001,-425.0,0.00020056,2]
[393969835,1763143846011,-1000.0,0.00020116,2]
[393969836,1763143846021,-166.66,0.00020172,2]
[393969837,1763143846030,-1000.0,0.00020187,2]
[393969838,1763143846040,-425.0,0.00020193,2]
[393969839,1763143846049,-1522.0,0.000202,2]
[393969840,1763143846061,-1000.0,0.0002021,2]
[393969841,1763143846071,-425.0,0.0002033,2]
[393969842,1763143846083,-150.0,0.00020431,2]
[393969843,1763143846092,-502.0,0.00020438,2]
[393969844,1763143846102,-425.0,0.00020467,2]
[393969845,1763143846111,-478.08,0.00020515,2]
[393969846,1763143846122,-1000.0,0.00020521,2]
[393969847,1763143846131,-193.21,0.00020526,2]
[393969848,1763143846140,-478.08,0.00020531,2]
[393969849,1763143846150,-478.08,0.00020531,2]
[393969850,1763143846160,-956.16,0.00020531,2]
[393969851,1763143846171,-478.08,0.00020531,2]
[393969852,1763143846180,-478.08,0.00020531,2]
[393969853,1763143846189,-478.08,0.00020531,2]
[393969854,1763143846198,-550.1,0.00020531,2]
[393969855,1763143846208,-917.773154,0.00020568,2]
[393969856,1763143846216,-425.0,0.00020604,2]
[393969857,1763143846226,-400.0,0.00020658,2]
[393969858,1763143846235,-356.34,0.00020711,2]
[393969859,1763143846244,-425.0,0.00020741,2]
[393969860,1763143846254,-1000.0,0.00020795,2]
[393969861,1763143846263,-2335.83007,0.0002082,2]
[393969862,1763143846273,-550.1,0.0002086,2]
[393969863,1763143846282,-550.1,0.0002086,2]
[393969864,1763143846292,-550.1,0.0002086,2]
[393969865,1763143846301,-425.0,0.00020878,2]
[393969866,1763143846312,-529.41643696,0.00021,3]
[393969867,1763143846321,-502.0,0.00021,2]
[393969868,1763143846331,-150.0,0.00021,2]
[393969869,1763143846341,-150.0,0.00021,2]
[393969870,1763143846350,-150.0,0.00021,2]
[393969871,1763143846360,-150.0,0.00021,2]
[393969872,1763143846370,-575.0,0.00021,2]
[393969873,1763143846380,-3429.0,0.00021,2]
[393969874,1763143846389,-608.0,0.00021,2]
[393969875,1763143846398,-1318.0,0.00021,2]
[393969876,1763143846408,-1598.0,0.00021,2]
[393969877,1763143846417,-821.0,0.00021,2]
[393969878,1763143846427,-350.0,0.00021,2]
[393969879,1763143846437,-793.0,0.00021,2]
[393969880,1763143846446,-1275.0,0.00021,2]
[393969881,1763143846455,-907.0,0.00021,2]
[393969882,1763143846465,-1190.0,0.00021,2]
[393969883,1763143846475,-6669.0,0.00021,2]
[393969884,1763143846485,-2145.0,0.00021,2]
[393969885,1763143846494,-6486.0,0.00021,2]
[393969886,1763143846504,-560.0,0.00021,2]
[393969887,1763143846513,-425.0,0.00021015,2]
[393969888,1763143846523,-177.26,0.00021024,2]
[393969889,1763143846532,-177.26,0.00021024,2]
[393969890,1763143846541,-177.26,0.00021024,2]
[393969891,1763143846551,-177.26,0.00021024,2]
[393969892,1763143846561,-12294.7421769,0.00021026,2]
[393969893,1763143846571,-70367.5461552,0.00021033,2]
[393969894,1763143846580,-12412.64,0.00021068,2]
[393969895,1763143846590,-151.0,0.000211,2]
[393969896,1763143846600,-168.06,0.00021134,2]
[393969897,1763143846609,-204.7828708,0.00021141,2]
[393969898,1763143846619,-444.0,0.00021152,2]
[393969899,1763143846628,-550.1,0.00021189,2]
[393969900,1763143846637,-2000.0,0.000212,2]
[393969901,1763143846646,-600.0,0.00021342,2]
[393969902,1763143846656,-177.26,0.00021353,2]
[393969903,1763143846665,-177.26,0.00021353,2]
[393969904,1763143846675,-177.26,0.00021353,2]
[393969905,1763143846684,-177.26,0.00021353,2]
[393969906,1763143846694,-353.67,0.00021353,2]
[393969907,1763143846704,-177.26,0.00021353,2]
[393969908,1763143846713,-355.86,0.00021353,2]
[393969909,1763143846722,-177.26,0.00021353,2]
[393969910,1763143846732,-177.26,0.00021353,2]
[393969911,1763143846742,-177.26,0.00021353,2]
[393969912,1763143846751,-177.26,0.00021353,2]
[393969913,1763143846761,-949.74,0.0002149,2]
[393969914,1763143846770,-550.1,0.00021517,2]
[393969915,1763143846779,-550.1,0.00021517,2]
[393969916,1763143846788,-2351.0,0.00021524,2]
[393969917,1763143846797,-317.71,0.00021533,2]
[393969918,1763143846808,-550.1,0.00021666,2]
[393969919,1763143846818,-550.1,0.00021666,2]
[393969920,1763143846827,-550.1,0.00021682,2]
[393969921,1763143846836,-550.1,0.00021682,2]
[393969922,1763143846846,-550.1,0.00021682,2]
[393969923,1763143846856,-550.1,0.00021682,2]
[393969924,1763143846865,-550.1,0.00021682,2]
[393969925,1763143846875,-550.1,0.00021682,2]
[393969926,1763143846884,-550.1,0.00021682,2]
[393969927,1763143846893,-550.1,0.00021682,2]
[393969928,1763143846903,-550.1,0.00021682,2]
[393969929,1763143846912,-1100.2,0.00021682,2]
[393969930,1763143846922,-550.1,0.00021682,2]
[393969931,1763143846932,-550.1,0.00021682,2]
[393969932,1763143846941,-550.1,0.00021682,2]
[393969933,1763143846950,-550.1,0.00021682,2]
[393969934,1763143846960,-550.1,0.00021682,2]
[393969935,1763143846969,-550.1,0.00021682,2]
[393969936,1763143846979,-550.1,0.00021682,2]
[393969937,1763143846988,-1100.2,0.00021682,2]
[393969939,1763143846998,-550.1,0.00021682,2]
[393969940,1763143847007,-550.1,0.00021682,2]
[393969941,1763143847017,-2743.3277909,0.00021701,2]
[393969942,1763143847026,-15701.1218428,0.0002171,2]
[393969943,1763143847035,-3720.6938893,0.0002172,2]
[393969944,1763143847045,-2335.83007,0.0002182,2]
[393969945,1763143847054,-150.0,0.00021901,2]
[393969946,1763143847064,-150.0,0.00021901,2]
[393969947,1763143847075,-150.0,0.00021901,2]
[393969948,1763143847089,-5000.0,0.00021918,2]
[393969949,1763143847098,-510.93127698,0.00021999,2]
[393969950,1763143847107,-674.4960351,0.00021999,2]
[393969951,1763143847117,-666.0,0.00021999,2]
[393969952,1763143847127,-48301.69008526,0.00022,4]
[393969953,1763143847136,-4111.87649457,0.00022,2]
[393969954,1763143847146,-160.97,0.00022,2]
[393969955,1763143847155,-151.0,0.00022,2]
[393969956,1763143847164,-151.0,0.00022,2]
[393969957,1763143847174,-181.0,0.00022,2]
[393969958,1763143847183,-2195.74,0.00022,7]
[393969959,1763143847192,-1000.0,0.00022,2]
[393969960,1763143847202,-155.0,0.00022,2]
[393969961,1763143847211,-550.1,0.00022011,2]
[393969962,1763143847221,-550.1,0.00022011,2]
[393969963,1763143847230,-550.1,0.00022011,2]
[393969964,1763143847239,-550.1,0.00022011,2]
[393969965,1763143847249,-550.1,0.00022011,2]
[393969966,1763143847258,-644.04135948,0.00022027,2]
[393969968,1763143847267,-490.30979597,0.000221,2]
[393969969,1763143847277,-238.2461384,0.0002211,2]
[393969970,1763143847287,-463.69387706,0.00022117,2]
[393969971,1763143847296,-177.26,0.00022159,2]
[393969973,1763143847305,-177.26,0.00022159,2]
[393969974,1763143847314,-177.26,0.00022159,2]
[393969975,1763143847324,-177.26,0.00022159,2]
[393969976,1763143847333,-177.26,0.00022159,2]
[393969978,1763143847343,-354.52,0.00022159,2]
[393969979,1763143847352,-181.58,0.00022159,2]
[393969980,1763143847362,-177.26,0.00022159,2]
[393969981,1763143847371,-177.26,0.00022159,2]
[393969982,1763143847381,-177.26,0.00022159,2]
[393969983,1763143847390,-177.26,0.00022159,2]
[393969984,1763143847400,-177.26,0.00022159,2]
[393969986,1763143847409,-177.26,0.00022159,2]
[393969987,1763143847419,-177.26,0.00022159,2]
[393969988,1763143847431,-177.26,0.00022159,2]
[393969989,1763143847441,-177.26,0.00022159,2]
[393969990,1763143847450,-354.35,0.00022159,2]
[393969991,1763143847460,-177.26,0.00022159,2]
[393969993,1763143847470,-177.26,0.00022175,2]
[393969994,1763143847479,-177.26,0.00022175,2]
[393969995,1763143847489,-168.06,0.00022308,2]
[393969996,1763143847499,-550.1,0.00022323,2]
[393969997,1763143847508,-258.31,0.00022323,2]
[393969998,1763143847518,-550.1,0.00022339,2]
[393969999,1763143847528,-550.1,0.00022339,2]
[393970001,1763143847537,-1100.2,0.00022339,2]
[393970002,1763143847547,-550.1,0.00022339,2]
[393970003,1763143847558,-550.1,0.00022339,2]
[393970004,1763143847568,-550.1,0.00022339,2]
[393970005,1763143847577,-550.1,0.00022339,2]
[393970006,1763143847588,-550.1,0.00022339,2]
[393970007,1763143847597,-550.1,0.00022339,2]
[393970008,1763143847607,-550.1,0.00022339,2]
[393970009,1763143847616,-550.1,0.00022339,2]
[393970011,1763143847626,-550.1,0.00022339,2]
[393970012,1763143847635,-550.1,0.00022339,2]
[393970013,1763143847644,-550.1,0.00022339,2]
[393970014,1763143847654,-1000.0,0.00022455,2]
[393970016,1763143847663,-235.81238438,0.00022574,2]
[393970017,1763143847672,-410.0,0.000228,3]
[393970018,1763143847682,-193.21,0.00022807,2]
[393970019,1763143847691,-2335.83007,0.0002282,2]
[393970020,1763143847700,-550.1,0.00022833,2]
[393970021,1763143847709,-550.1,0.00022833,2]
[393970022,1763143847718,-550.1,0.00022833,2]
[393970023,1763143847727,-177.26,0.00022981,2]
[393970024,1763143847737,-177.26,0.00022981,2]
[393970025,1763143847746,-177.26,0.00022981,2]
[393970026,1763143847756,-177.26,0.00023001,2]
[393970027,1763143847765,-177.26,0.00023001,2]
[393970028,1763143847775,-10888.7,0.00023333,2]
[393970029,1763143847784,-168.06,0.00023482,2]
[393970030,1763143847793,-998.91,0.0002349,2]
[393970031,1763143847813,-550.1,0.0002349,2]
[393970032,1763143847823,-550.1,0.0002349,2]
[393970033,1763143847832,-550.1,0.0002349,2]
[393970034,1763143847841,-166.78,0.000235,2]
[393970036,1763143847851,-3720.6938893,0.0002358,2]
[393970037,1763143847860,-2435.0,0.00023603,2]
[393970038,1763143847869,-177.26,0.00023803,2]
[393970040,1763143847879,-177.26,0.00023803,2]
[393970041,1763143847888,-177.26,0.00023803,2]
[393970042,1763143847900,-354.52,0.00023823,2]
[393970043,1763143847922,-491.64717191,0.00024,2]
[393970045,1763143847943,-150.0,0.00024,2]
[393970046,1763143847954,-575.0,0.00024,2]
[393970047,1763143847963,-3429.0,0.00024,2]
[393970049,1763143847973,-608.0,0.00024,2]
[393970050,1763143847983,-1318.0,0.00024,2]
[393970051,1763143847994,-1598.0,0.00024,2]
[393970052,1763143848003,-821.0,0.00024,2]
[393970054,1763143848012,-793.0,0.00024,2]
[393970055,1763143848022,-1275.0,0.00024,2]
[393970056,1763143848032,-907.0,0.00024,2]
[393970058,1763143848042,-1190.0,0.00024,2]
[393970059,1763143848051,-6669.0,0.00024,2]
[393970060,1763143848061,-2145.0,0.00024,2]
[393970061,1763143848070,-6486.0,0.00024,2]
[393970063,1763143848084,-560.0,0.00024,2]
[393970064,1763143848093,-418.01507882,0.0002421,2]
[393970065,1763143848103,-3248.70733439,0.0002421,2]
[393970066,1763143848112,-550.1,0.00024312,2]
[393970068,1763143848122,-550.1,0.00024641,2]
[393970069,1763143848132,-165.98513982,0.0002465,2]
[393970070,1763143848141,-168.06,0.00024656,2]
[393970071,1763143848150,-500.0,0.00024657,2]
[393970073,1763143848162,-500.0,0.00024657,2]
[393970074,1763143848171,-500.0,0.00024657,2]
[393970075,1763143848180,-500.0,0.00024657,2]
[393970077,1763143848191,-500.0,0.00024657,2]
[393970078,1763143848200,-500.0,0.00024657,2]
[393970079,1763143848209,-181.62617916,0.00024657,2]
[393970080,1763143848219,-393.21,0.00024658,30]
[393970082,1763143848228,-153.0,0.00024658,2]
[393970083,1763143848238,-153.0,0.00024658,2]
[393970084,1763143848247,-153.0,0.00024658,2]
[393970086,1763143848256,-153.0,0.00024658,2]
[393970087,1763143848266,-153.0,0.00024658,2]
[393970088,1763143848278,-153.0,0.00024658,2]
[393970089,1763143848287,-153.0,0.00024658,2]
[393970091,1763143848296,-153.0,0.00024658,2]
[393970092,1763143848308,-153.0,0.00024658,2]
[393970093,1763143848318,-153.0,0.00024658,2]
[393970095,1763143848327,-153.0,0.00024658,2]
[393970096,1763143848336,-153.0,0.00024658,2]
[393970097,1763143848346,-153.0,0.00024658,2]
[393970098,1763143848355,-153.0,0.00024658,2]
[393970100,1763143848365,-153.0,0.00024658,2]
[393970101,1763143848375,-153.0,0.00024658,2]
[393970102,1763143848384,-153.0,0.00024658,2]
[393970104,1763143848394,-153.0,0.00024658,2]
[393970105,1763143848403,-153.0,0.00024658,2]
[393970106,1763143848412,-153.0,0.00024658,2]
[393970107,1763143848421,-153.0,0.00024658,2]
[393970109,1763143848431,-153.0,0.00024658,2]
[393970110,1763143848440,-1000.0,0.00024658,2]
[393970111,1763143848450,-859.69,0.00024658,2]
[393970112,1763143848459,-1000.0,0.00024701,2]
[393970114,1763143848469,-666.0,0.00024799,2]
[393970115,1763143848479,-2195.74,0.000248,7]
[393970116,1763143848488,-478.82688331,0.000248,3]
[393970117,1763143848498,-620573.723623,0.000248,3]
[393970119,1763143848507,-151.0,0.00024897,7]
[393970120,1763143848516,-595.10892624,0.00024899,2]
[393970121,1763143848526,-2000.0,0.000249,2]
[393970122,1763143848535,-214039.501685,0.000249,3]
[393970124,1763143848545,-151.62523568,0.00025,2]
[393970125,1763143848556,-602.09525324,0.00025,2]
[393970126,1763143848565,-205.27048042,0.00025,2]
[393970127,1763143848587,-1765.45543302,0.00025,2]
[393970128,1763143848607,-4748.76552699,0.00025,3]
[393970129,1763143848618,-360.0,0.00025,2]
[393970130,1763143848627,-6309.94428556,0.00025,15]
[393970131,1763143848637,-2022.23385151,0.00025,2]
[393970132,1763143848646,-151.0,0.000256,2]
[393970133,1763143848655,-20110.95596796,0.00025879,2]
[393970134,1763143848667,-169.37,0.00025956,2]
[393970135,1763143848676,-169.37,0.00025956,2]
[393970136,1763143848686,-342.04,0.00025956,2]
[393970137,1763143848696,-169.37,0.00025956,2]
[393970138,1763143848705,-169.37,0.00025956,2]
[393970139,1763143848714,-169.37,0.00025956,2]